bitfinex/quotes_BTCUSD_20250601
["timestamp","ask_amount","ask_price","bid_price","bid_amount"]
[1748742506732,0.70801327,104300.0,104290.0,1.13355972]
[1748742506923,0.70801327,104300.0,104290.0,1.11558945]
[1748742507884,0.70801327,104300.0,104290.0,1.13355972]
[1748742508093,0.70801327,104300.0,104290.0,1.11558945]
[1748742508528,0.70801327,104300.0,104290.0,1.1223283]
[1748742508818,0.70801327,104300.0,104290.0,0.73102945]
[1748742509004,0.70801327,104300.0,104290.0,1.11554945]
[1748742509435,0.7788146,104300.0,104290.0,0.73102945]
[1748742509656,1.10229787,104300.0,104290.0,1.11554945]
[1748742509864,1.43536822,104300.0,104290.0,0.27607275]
[1748742510079,1.43536822,104300.0,104290.0,0.66059275]
[1748742510280,1.10229787,104300.0,104290.0,1.01856498]
[1748742510484,1.60619587,104300.0,104290.0,1.00059275]
[1748742510818,1.53539454,104300.0,104290.0,1.00059275]
[1748742511225,1.52580764,104300.0,104290.0,1.00059275]
[1748742511805,1.52580764,104300.0,104290.0,1.00733233]
[1748742512011,1.52580764,104300.0,104290.0,1.00059275]
[1748742513087,1.52580764,104300.0,104290.0,1.00733234]
[1748742513732,1.52580764,104300.0,104290.0,1.00059275]
[1748742516225,1.61831886,104300.0,104290.0,1.00059275]
[1748742517223,1.61831886,104300.0,104290.0,1.00733222]
[1748742517631,1.61831886,104300.0,104290.0,1.00059275]
[1748742518183,1.52580764,104300.0,104290.0,1.00059275]
[1748742519052,1.52580764,104300.0,104290.0,1.00733224]
[1748742519218,1.52580764,104300.0,104290.0,1.00059275]
[1748742519423,1.52580764,104300.0,104290.0,1.00733225]
[1748742519623,1.52580764,104300.0,104290.0,1.00059275]
[1748742519827,1.52580764,104300.0,104290.0,1.00733224]
[1748742520025,1.52580764,104300.0,104290.0,1.00733223]
[1748742520332,1.52580764,104300.0,104290.0,1.00059275]
[1748742520751,1.55388617,104300.0,104290.0,1.00059275]
[1748742521159,1.55388617,104300.0,104290.0,1.00733224]
[1748742521481,1.55388617,104300.0,104290.0,1.00059275]
[1748742522111,1.55388617,104300.0,104290.0,1.00733224]
[1748742522513,1.52580764,104300.0,104290.0,1.00059275]
[1748742523118,1.52580764,104300.0,104290.0,0.70651275]
[1748742523349,1.52580764,104300.0,104290.0,1.00055275]
[1748742523547,1.52580764,104300.0,104290.0,1.00729229]
[1748742523726,1.52580764,104300.0,104290.0,1.00055275]
[1748742523927,1.61831886,104300.0,104290.0,1.00055275]
[1748742525422,1.52580764,104300.0,104290.0,1.00055275]
[1748742526271,1.52580764,104300.0,104290.0,1.00729229]
[1748742526427,1.52580764,104300.0,104290.0,1.00055275]
[1748742526630,1.52580764,104300.0,104290.0,1.00729226]
[1748742526835,1.52580764,104300.0,104290.0,1.00055275]
[1748742529163,1.58557023,104300.0,104290.0,1.00729229]
[1748742529343,1.58557023,104300.0,104290.0,1.00055275]
[1748742529576,1.58557023,104300.0,104290.0,1.0072923]
[1748742529782,1.58557023,104300.0,104290.0,1.00055275]
[1748742530004,1.58557023,104300.0,104290.0,1.00729229]
[1748742530213,1.58557023,104300.0,104290.0,1.00055275]
[1748742530858,1.58557023,104300.0,104290.0,1.00729226]
[1748742531035,1.58557023,104300.0,104290.0,1.00055275]
[1748742531181,1.58557023,104300.0,104290.0,1.00729226]
[1748742531615,1.58557023,104300.0,104290.0,1.00055275]
[1748742531786,1.58557023,104300.0,104290.0,1.00729226]
[1748742532139,1.58557023,104300.0,104290.0,1.00055275]
[1748742532964,1.58557023,104300.0,104290.0,1.00729229]
[1748742533106,1.58557023,104300.0,104290.0,1.00055275]
[1748742533307,1.58557023,104300.0,104290.0,1.00729229]
[1748742533509,1.58557023,104300.0,104290.0,1.00055275]
[1748742534836,1.58557023,104300.0,104290.0,1.00729225]
[1748742535055,1.58557023,104300.0,104290.0,1.00055275]
[1748742535254,1.58557023,104300.0,104290.0,1.00729225]
[1748742535463,1.58557023,104300.0,104290.0,1.00055275]
[1748742536979,1.58557023,104300.0,104290.0,1.00047275]
[1748742537596,1.58557023,104300.0,104290.0,1.00721235]
[1748742537795,1.58557023,104300.0,104290.0,1.00047275]
[1748742538224,1.58557023,104300.0,104290.0,1.00721235]
[1748742538565,1.58557023,104300.0,104290.0,1.00047275]
[1748742539008,1.58557023,104300.0,104290.0,0.71321235]
[1748742539214,1.58557023,104300.0,104290.0,1.00721247]
[1748742539415,1.58557023,104300.0,104290.0,1.00047275]
[1748742540027,1.58557023,104300.0,104290.0,1.00721244]
[1748742540231,1.58557023,104300.0,104290.0,1.00047275]
[1748742540444,1.58557023,104300.0,104290.0,1.00721244]
[1748742540659,1.58557023,104300.0,104290.0,1.00047275]
[1748742541018,1.58557023,104300.0,104290.0,1.00721244]
[1748742541223,1.58557023,104300.0,104290.0,1.00047275]
[1748742541429,1.58557023,104300.0,104290.0,1.01657275]
[1748742541811,1.58557023,104300.0,104290.0,1.03187275]
[1748742542503,1.58557023,104300.0,104290.0,1.03861258]
[1748742542777,1.58557023,104300.0,104290.0,1.03187275]
[1748742543512,1.58557023,104300.0,104290.0,0.94147275]
[1748742544482,1.58557023,104300.0,104290.0,0.94821243]
[1748742544686,1.52580764,104300.0,104290.0,0.94821243]
[1748742544861,1.52580764,104300.0,104290.0,0.94147275]
[1748742545463,1.52580764,104300.0,104290.0,0.65421243]
[1748742545670,1.52580764,104300.0,104290.0,0.94143275]
[1748742546109,1.52580764,104300.0,104290.0,0.9234598]
[1748742546507,1.61831886,104300.0,104290.0,0.9234598]
[1748742546720,1.61831886,104300.0,104290.0,0.9081598]
[1748742546916,1.61831886,104300.0,104290.0,0.91489948]
[1748742547120,1.20232437,104300.0,104290.0,1.01075377]
[1748742547327,1.52580764,104300.0,104290.0,1.0040141]
[1748742547529,1.52580764,104300.0,104290.0,0.9879141]
[1748742547797,1.52580764,104300.0,104290.0,0.99465365]
[1748742548618,1.52580764,104300.0,104290.0,0.9879141]
[1748742548906,1.52580764,104300.0,104290.0,0.99465298]
[1748742549349,1.52580764,104300.0,104290.0,0.9879141]
[1748742549707,1.52580764,104300.0,104290.0,1.01262327]
[1748742550369,1.61831886,104300.0,104290.0,1.01262379]
[1748742550579,1.61831886,104300.0,104290.0,0.99465315]
[1748742550783,1.61831886,104300.0,104290.0,1.0783141]
[1748742551693,1.61831886,104300.0,104290.0,1.09628492]
[1748742551886,1.61831886,104300.0,104290.0,1.0783141]
[1748742552541,1.61831886,104300.0,104290.0,1.08505312]
[1748742552723,1.61831886,104300.0,104290.0,1.0783141]
[1748742552873,1.61831886,104300.0,104290.0,1.0962849]
[1748742553081,1.61831886,104300.0,104290.0,1.0783141]
[1748742553463,1.61831886,104300.0,104290.0,1.109763]
[1748742553985,1.61831886,104300.0,104290.0,1.10302395]
[1748742554546,1.61831886,104300.0,104290.0,1.12099539]
[1748742554828,1.61831886,104300.0,104290.0,1.11802395]
[1748742555005,1.61831886,104300.0,104290.0,1.15159539]
[1748742555207,1.61831886,104300.0,104290.0,1.13362395]
[1748742556397,0.97135232,104300.0,104290.0,1.13362395]
[1748742556596,1.61831886,104300.0,104290.0,1.14036324]
[1748742556858,1.61831886,104300.0,104290.0,1.13362395]
[1748742557379,1.61831886,104300.0,104290.0,1.1515954]
[1748742557562,1.61831886,104300.0,104290.0,1.13362395]
[1748742557803,1.61831886,104300.0,104290.0,1.15159539]
[1748742557999,1.52580764,104300.0,104290.0,1.13362395]
[1748742558197,1.52580764,104300.0,104290.0,1.14036323]
[1748742558341,1.52580764,104300.0,104290.0,1.15833466]
[1748742558550,1.52580764,104300.0,104290.0,1.13362395]
[1748742558774,1.52580764,104300.0,104290.0,1.14036323]
[1748742558986,1.52580764,104300.0,104290.0,1.13362395]
[1748742559209,1.61831886,104300.0,104290.0,1.13362395]
[1748742559410,1.61831886,104300.0,104290.0,1.15159537]
[1748742559635,1.61831886,104300.0,104290.0,1.13362395]
[1748742560149,1.61831886,104300.0,104290.0,1.10976323]
[1748742560290,1.61831886,104300.0,104290.0,1.10302395]
[1748742560740,1.61831886,104300.0,104290.0,1.12099537]
[1748742560935,1.61831886,104300.0,104290.0,1.10976323]
[1748742561087,1.61831886,104300.0,104290.0,1.12099537]
[1748742561294,1.61831886,104300.0,104290.0,1.10302395]
[1748742561495,1.61831886,104300.0,104290.0,1.10976323]
[1748742561748,1.61831886,104300.0,104290.0,1.10302395]
[1748742562490,1.61831886,104300.0,104290.0,1.12099537]
[1748742562689,1.61831886,104300.0,104290.0,1.10302395]
[1748742563773,1.61831886,104300.0,104290.0,1.10976323]
[1748742563983,1.61831886,104300.0,104290.0,1.12099537]
[1748742564185,1.61831886,104300.0,104290.0,1.10302395]
[1748742564381,1.61831886,104300.0,104290.0,1.12773465]
[1748742565288,1.29483559,104300.0,104290.0,1.10302395]
[1748742565899,1.29483559,104300.0,104290.0,1.12099537]
[1748742566145,1.29483559,104300.0,104290.0,1.11425605]
[1748742566330,1.29483559,104300.0,104290.0,1.09628463]
[1748742566527,1.29483559,104300.0,104290.0,1.10302398]
[1748742566699,1.29483559,104300.0,104290.0,1.09628463]
[1748742567086,1.29483559,104300.0,104290.0,1.11425624]
[1748742567290,1.29483559,104300.0,104290.0,1.09628463]
[1748742567531,1.20232437,104300.0,104290.0,1.09628463]
[1748742567766,1.20232437,104300.0,104290.0,1.11425624]
[1748742568001,1.20232437,104300.0,104290.0,1.09628463]
[1748742568184,1.20232437,104300.0,104290.0,1.12099559]
[1748742568387,1.20232437,104300.0,104290.0,1.09628463]
[1748742568586,1.29483559,104300.0,104290.0,1.09628463]
[1748742568809,1.29483559,104300.0,104290.0,1.10302398]
[1748742569057,1.29483559,104300.0,104290.0,1.11425624]
[1748742569232,1.29483559,104300.0,104290.0,1.12099559]
[1748742569433,1.29483559,104300.0,104290.0,1.09628463]
[1748742570163,1.29483559,104300.0,104290.0,1.11425624]
[1748742570367,1.29483559,104300.0,104290.0,1.09628463]
[1748742570583,1.29483559,104300.0,104290.0,1.11425624]
[1748742570791,1.29483559,104300.0,104290.0,1.10302398]
[1748742570989,1.20232437,104300.0,104290.0,1.09628463]
[1748742571211,1.20232437,104300.0,104290.0,1.10302398]
[1748742571374,1.20232437,104300.0,104290.0,1.09628463]
[1748742573642,1.20232437,104300.0,104290.0,1.10302398]
[1748742574049,1.20232437,104300.0,104290.0,1.09628463]
[1748742574625,1.20232437,104300.0,104290.0,1.11425624]
[1748742574857,1.20232437,104300.0,104290.0,1.12099559]
[1748742575064,0.8788411,104300.0,104290.0,1.12099559]
[1748742575218,0.8788411,104300.0,104290.0,1.10302339]
[1748742575419,0.8788411,104300.0,104290.0,1.09628463]
[1748742576260,0.8788411,104300.0,104290.0,1.13373196]
[1748742576631,0.8788411,104300.0,104290.0,1.12250097]
[1748742577024,0.8788411,104300.0,104290.0,1.11576238]
[1748742577505,0.8788411,104300.0,104290.0,1.12250097]
[1748742577708,0.8788411,104300.0,104290.0,1.11576238]
[1748742578009,0.8788411,104300.0,104290.0,1.12250097]
[1748742578412,0.8778411,104300.0,104290.0,1.12250097]
[1748742578657,0.8778411,104300.0,104290.0,1.11576238]
[1748742578857,0.8788411,104300.0,104290.0,1.11576238]
[1748742579057,0.8788411,104300.0,104290.0,1.13373169]
[1748742579272,0.8788411,104300.0,104290.0,1.11576238]
[1748742579454,0.8788411,104300.0,104290.0,1.12250085]
[1748742580279,0.8788411,104300.0,104290.0,1.122501]
[1748742580581,0.8788411,104300.0,104290.0,1.11576238]
[1748742580947,0.8788411,104300.0,104290.0,1.12248271]
[1748742581154,0.8788411,104300.0,104290.0,1.11576238]
[1748742582125,0.8788411,104300.0,104290.0,1.13368327]
[1748742582342,0.8788411,104300.0,104290.0,1.11576238]
[1748742583112,0.8788411,104300.0,104290.0,1.12248271]
[1748742583332,0.8788411,104300.0,104290.0,1.11576238]
[1748742583740,0.8788411,104300.0,104290.0,1.12248271]
[1748742583975,0.8788411,104300.0,104290.0,1.11576238]
[1748742586218,0.8788411,104300.0,104290.0,1.10231466]
[1748742586752,0.8788411,104300.0,104290.0,1.10903498]
[1748742587024,0.8788411,104300.0,104290.0,1.10231466]
[1748742587533,0.8788411,104300.0,104290.0,1.10903497]
[1748742587702,0.8788411,104300.0,104290.0,1.10231466]
[1748742587909,0.8788411,104300.0,104290.0,1.10903497]
[1748742588113,0.8788411,104300.0,104290.0,1.10231466]
[1748742589020,0.8788411,104300.0,104290.0,1.11771466]
[1748742589221,0.8788411,104300.0,104290.0,1.12443499]
[1748742589422,0.8788411,104300.0,104290.0,1.11771466]
[1748742589782,0.8788411,104300.0,104290.0,1.13271466]
[1748742591568,0.8788411,104300.0,104290.0,1.13943497]
[1748742592018,0.8788411,104300.0,104290.0,1.13271466]
[1748742593500,0.8788411,104300.0,104290.0,1.13943498]
[1748742595561,0.8788411,104300.0,104290.0,1.1461553]
[1748742595779,0.8788411,104300.0,104290.0,1.13943498]
[1748742596638,0.8788411,104300.0,104290.0,1.14617358]
[1748742596826,0.8788411,104300.0,104290.0,1.13943498]
[1748742597409,0.8788411,104300.0,104290.0,1.13927498]
[1748742597610,0.8788411,104300.0,104290.0,1.14601359]
[1748742597810,0.8788411,104300.0,104290.0,1.13927498]
[1748742598779,0.8788411,104300.0,104290.0,1.14601359]
[1748742599034,0.8788411,104300.0,104290.0,1.13927498]
[1748742599643,0.8788411,104300.0,104290.0,1.14601359]
[1748742599882,0.8788411,104300.0,104290.0,1.13927498]
[1748742600414,0.8788411,104300.0,104290.0,1.14601359]
[1748742601032,0.8788411,104300.0,104290.0,1.13927498]
[1748742601232,0.97135232,104300.0,104290.0,1.13927498]
[1748742601670,1.20232437,104300.0,104290.0,1.13927498]
[1748742601838,0.8788411,104300.0,104290.0,1.13927498]
[1748742602041,0.8788411,104300.0,104290.0,1.14601359]
[1748742602243,0.8788411,104300.0,104290.0,1.13927498]
[1748742602447,0.8788411,104300.0,104290.0,1.14601359]
[1748742602672,0.8788411,104300.0,104290.0,1.13927498]
[1748742603491,0.8788411,104300.0,104290.0,1.14601359]
[1748742603692,0.8788411,104300.0,104290.0,1.13927498]
[1748742605147,0.8788411,104300.0,104290.0,1.14601359]
[1748742605325,0.8788411,104300.0,104290.0,1.13927498]
[1748742605534,0.8788411,104300.0,104290.0,1.14601359]
[1748742605736,0.8788411,104300.0,104290.0,1.13927498]
[1748742605910,0.97135232,104300.0,104290.0,1.14601359]
[1748742606110,0.97135232,104300.0,104290.0,1.13927498]
[1748742606511,0.97135232,104300.0,104290.0,1.14601359]
[1748742606725,0.97135232,104300.0,104290.0,1.13927498]
[1748742607135,0.97135232,104300.0,104290.0,1.14601359]
[1748742607341,0.97135232,104300.0,104290.0,1.13927498]
[1748742607732,0.8788411,104300.0,104290.0,1.13927498]
[1748742610142,0.8788411,104300.0,104290.0,1.14601359]
[1748742610562,0.8788411,104300.0,104290.0,1.13520722]
[1748742615513,0.8788411,104300.0,104290.0,1.14194583]
[1748742615924,0.8788411,104300.0,104290.0,1.13520722]
[1748742616298,0.8788411,104300.0,104290.0,1.12846863]
[1748742616715,0.8788411,104300.0,104290.0,1.13520723]
[1748742616900,0.8788411,104300.0,104290.0,1.12846863]
[1748742618902,0.8788411,104300.0,104290.0,1.13520724]
[1748742619114,0.8788411,104300.0,104290.0,1.12846863]
[1748742619499,0.8788411,104300.0,104290.0,1.13520724]
[1748742619661,0.8788411,104300.0,104290.0,1.12846863]
[1748742620129,0.8788411,104300.0,104290.0,1.13253947]
[1748742620901,0.8788411,104300.0,104290.0,1.13927808]
[1748742621110,0.8788411,104300.0,104290.0,1.13253947]
[1748742621304,0.8788411,104300.0,104290.0,1.13927808]
[1748742621511,0.8788411,104300.0,104290.0,1.13253947]
[1748742621812,0.8788411,104300.0,104290.0,1.13927808]
[1748742622203,0.8788411,104300.0,104290.0,1.13253947]
[1748742622761,0.8788411,104300.0,104290.0,1.13927808]
[1748742622966,0.97135232,104300.0,104290.0,1.13253947]
[1748742623190,0.97135232,104300.0,104290.0,1.13927808]
[1748742623422,0.97135232,104300.0,104290.0,1.13253947]
[1748742623632,1.29483559,104300.0,104290.0,1.13245947]
[1748742624461,1.29483559,104300.0,104290.0,1.13919814]
[1748742624672,1.29483559,104300.0,104290.0,1.13245947]
[1748742625316,1.29483559,104300.0,104290.0,0.83873947]
[1748742625497,1.29483559,104300.0,104290.0,1.13245947]
[1748742625952,1.20232437,104300.0,104290.0,1.13245947]
[1748742626343,1.20232437,104300.0,104290.0,1.12572062]
[1748742626517,0.8788411,104300.0,104290.0,1.13245932]
[1748742626725,0.8788411,104300.0,104290.0,1.12572062]
[1748742631961,0.8788411,104300.0,104290.0,1.13245929]
[1748742632160,0.8788411,104300.0,104290.0,1.12572062]
[1748742632916,0.8788411,104300.0,104290.0,1.13245928]
[1748742633126,0.8788411,104300.0,104290.0,1.12572062]
[1748742633762,0.8788411,104300.0,104290.0,1.13245929]
[1748742633966,0.8788411,104300.0,104290.0,1.12572062]
[1748742634970,0.8788411,104300.0,104290.0,1.13245929]
[1748742635195,0.8788411,104300.0,104290.0,1.12572062]
[1748742635759,0.8788411,104300.0,104290.0,1.1020593]
[1748742635962,0.8788411,104300.0,104290.0,1.09532062]
[1748742636637,0.8788411,104300.0,104290.0,0.80160062]
[1748742636971,0.8788411,104300.0,104290.0,1.09528062]
[1748742637498,0.8788411,104300.0,104290.0,1.10201931]
[1748742637702,0.8788411,104300.0,104290.0,1.09528062]
[1748742638899,0.8788411,104300.0,104290.0,1.10201931]
[1748742639102,0.8788411,104300.0,104290.0,1.09528062]
[1748742640250,0.8788411,104300.0,104290.0,1.10201931]
[1748742640627,0.8788411,104300.0,104290.0,1.09528062]
[1748742642160,0.8788411,104300.0,104290.0,1.10201931]
[1748742642348,0.8788411,104300.0,104290.0,1.09528062]
[1748742642558,0.8788411,104300.0,104290.0,1.10201931]
[1748742642774,0.8788411,104300.0,104290.0,1.09528062]
[1748742642987,0.8788411,104300.0,104290.0,1.10201931]
[1748742643398,0.8788411,104300.0,104290.0,1.1020193]
[1748742643529,0.8788411,104300.0,104290.0,1.09528062]
[1748742644788,0.8788411,104300.0,104290.0,1.10201917]
[1748742644996,0.8788411,104300.0,104290.0,1.09528062]
[1748742646245,0.8788411,104300.0,104290.0,1.10201919]
[1748742646515,0.8788411,104300.0,104290.0,1.09528062]
[1748742646953,0.8788411,104300.0,104290.0,1.10201919]
[1748742647156,0.8788411,104300.0,104290.0,1.1020192]
[1748742647738,0.8788411,104300.0,104290.0,1.09528062]
[1748742648051,0.8788411,104300.0,104290.0,1.1020192]
[1748742648398,0.8788411,104300.0,104290.0,1.09528062]
[1748742649625,0.8788411,104300.0,104290.0,1.10201919]
[1748742650164,0.8788411,104300.0,104290.0,1.09528062]
[1748742651861,0.8788411,104300.0,104290.0,1.10201919]
[1748742652072,0.8788411,104300.0,104290.0,1.09528062]
[1748742652682,0.8788411,104300.0,104290.0,1.10201928]
[1748742653052,0.8788411,104300.0,104290.0,1.09528062]
[1748742653483,0.8788411,104300.0,104290.0,1.10201928]
[1748742653689,0.8788411,104300.0,104290.0,1.09528062]
[1748742654094,0.8788411,104300.0,104290.0,1.10201928]
[1748742654297,0.8788411,104300.0,104290.0,1.09528062]
[1748742656151,0.8788411,104300.0,104290.0,1.102019]
[1748742656355,0.8788411,104300.0,104290.0,1.09528062]
[1748742656560,0.8788411,104300.0,104290.0,1.10201901]
[1748742656995,0.8788411,104300.0,104290.0,1.10201425]
[1748742657247,0.8788411,104300.0,104290.0,1.09528062]
[1748742657445,0.8788411,104300.0,104290.0,1.10201426]
[1748742657649,0.8788411,104300.0,104290.0,1.09528062]
[1748742658361,0.38453,104300.0,104290.0,1.09528062]
[1748742658600,0.38453,104300.0,104290.0,1.10201423]
[1748742658806,0.38453,104300.0,104290.0,1.09528062]
[1748742659859,0.38453,104300.0,104290.0,1.10201423]
[1748742660098,0.38453,104300.0,104290.0,1.09528062]
[1748742660320,0.38453,104300.0,104290.0,0.71793423]
[1748742660534,0.43618828,104300.0,104290.0,1.09496062]
[1748742661391,0.43618828,104300.0,104290.0,1.10169449]
[1748742661815,0.43618828,104300.0,104290.0,1.09496062]
[1748742662411,0.43618828,104300.0,104290.0,0.71120062]
[1748742662658,0.75967155,104300.0,104290.0,1.09496062]
[1748742662860,0.75967155,104300.0,104290.0,1.1016945]
[1748742663068,0.75967155,104300.0,104290.0,1.09496062]
[1748742663929,0.75967155,104300.0,104290.0,1.10169451]
[1748742664132,0.75967155,104300.0,104290.0,1.09496062]
[1748742664680,0.75967155,104300.0,104290.0,1.10169451]
[1748742665088,0.75967155,104300.0,104290.0,1.09496062]
[1748742665481,0.75967155,104300.0,104290.0,1.10169451]
[1748742665813,0.75967155,104300.0,104290.0,1.09496062]
[1748742667027,1.08315482,104300.0,104290.0,0.78188287]
[1748742667235,0.75967155,104300.0,104290.0,1.09115599]
[1748742667468,0.75967155,104300.0,104290.0,1.08442199]
[1748742667659,0.75967155,104300.0,104290.0,1.08217721]
[1748742667870,0.75967155,104300.0,104290.0,1.08442199]
[1748742668062,0.75967155,104300.0,104290.0,1.07544287]
[1748742668264,0.70801327,104300.0,104290.0,1.08442199]
[1748742668506,0.70801327,104300.0,104290.0,1.07544287]
[1748742668708,0.70801327,104300.0,104290.0,1.08442199]
[1748742668933,0.70801327,104300.0,104290.0,1.07544287]
[1748742669158,0.70801327,104300.0,104290.0,0.79086199]
[1748742669367,0.78169051,104300.0,104290.0,1.07544287]
[1748742669789,0.78169051,104300.0,104290.0,1.08217739]
[1748742669992,0.78169051,104300.0,104290.0,1.08442224]
[1748742670199,0.78169051,104300.0,104290.0,1.07544287]
[1748742670821,0.78169051,104300.0,104290.0,1.08442227]
[1748742671004,0.78169051,104300.0,104290.0,1.07544287]
[1748742671621,0.78169051,104300.0,104290.0,1.08217739]
[1748742671821,0.78169051,104300.0,104290.0,1.07544287]
[1748742672024,0.78169051,104300.0,104290.0,1.08217739]
[1748742672410,0.78169051,104300.0,104290.0,1.07544287]
[1748742672597,0.78169051,104300.0,104290.0,1.08217739]
[1748742672744,0.78169051,104300.0,104290.0,1.07544287]
[1748742673173,0.78169051,104300.0,104290.0,1.08442226]
[1748742673387,0.78169051,104300.0,104290.0,1.08217742]
[1748742673616,0.78169051,104300.0,104290.0,1.08442227]
[1748742674244,0.78169051,104300.0,104290.0,0.70744157]
[1748742674418,0.78169051,104300.0,104290.0,1.08442227]
[1748742674793,0.78169051,104300.0,104290.0,1.09116157]
[1748742675019,0.78169051,104300.0,104290.0,1.08442227]
[1748742676463,0.78169051,104300.0,104290.0,1.06645172]
[1748742676703,0.78169051,104300.0,104290.0,1.06869815]
[1748742677314,0.78169051,104300.0,104290.0,1.06645172]
[1748742677532,0.78169051,104300.0,104290.0,1.05971242]
[1748742677756,0.45820724,104300.0,104290.0,1.05971242]
[1748742677962,0.78169051,104300.0,104290.0,1.06645172]
[1748742678172,0.78169051,104300.0,104290.0,1.05971242]
[1748742678379,0.78169051,104300.0,104290.0,1.06645172]
[1748742678584,0.78169051,104300.0,104290.0,1.05971242]
[1748742679047,0.78169051,104300.0,104290.0,1.06869815]
[1748742679252,0.78169051,104300.0,104290.0,1.05971242]
[1748742679466,0.78169051,104300.0,104290.0,1.06645172]
[1748742679685,0.78169051,104300.0,104290.0,1.05971242]
[1748742679918,0.78169051,104300.0,104290.0,0.67599242]
[1748742680132,0.78169051,104300.0,104290.0,1.06645172]
[1748742680310,0.78169051,104300.0,104290.0,1.06869815]
[1748742680512,0.78169051,104300.0,104290.0,1.05971242]
[1748742680824,0.78169051,104300.0,104290.0,1.06869815]
[1748742681028,0.78169051,104300.0,104290.0,1.05971242]
[1748742681380,0.78169051,104300.0,104290.0,1.06645172]
[1748742682222,0.78169051,104300.0,104290.0,1.05971242]
[1748742682470,0.78169051,104300.0,104290.0,1.06645172]
[1748742682886,0.78169051,104300.0,104290.0,1.05971242]
[1748742684219,0.78169051,104300.0,104290.0,1.07543745]
[1748742684620,0.78169051,104300.0,104290.0,1.05971242]
[1748742684855,0.78169051,104300.0,104290.0,1.06869815]
[1748742685077,0.78169051,104300.0,104290.0,1.06865815]
[1748742685078,1.10517378,104300.0,104290.0,1.06865815]
[1748742685283,1.10517378,104300.0,104290.0,1.05967242]
[1748742685494,1.10517378,104300.0,104290.0,0.68273172]
[1748742685698,1.11476077,104300.0,104290.0,0.88264385]
[1748742685880,1.11476077,104300.0,104290.0,0.87365812]
[1748742686110,1.11476068,104300.0,104290.0,0.87365812]
[1748742686928,1.11476068,104300.0,104290.0,0.88938372]
[1748742687082,1.11476068,104300.0,104290.0,0.88039766]
[1748742687294,1.11476068,104300.0,104290.0,0.87365812]
[1748742687524,1.12434767,104300.0,104290.0,0.87365812]
[1748742687910,1.61865877,104300.0,104290.0,0.87365812]
[1748742688534,1.61865877,104300.0,104290.0,0.88264418]
[1748742688899,1.61865877,104300.0,104290.0,0.88039774]
[1748742689104,1.61865877,104300.0,104290.0,0.87365812]
[1748742689439,1.61865877,104300.0,104290.0,0.88264438]
[1748742689641,1.61865877,104300.0,104290.0,0.88039777]
[1748742689861,1.61865877,104300.0,104290.0,0.87365812]
[1748742690426,1.61865877,104300.0,104290.0,0.58912432]
[1748742690623,2.14348486,104300.0,104290.0,0.01981936]
[1748742690767,1.82000159,104300.0,104290.0,0.51470076]
[1748742690973,1.82000159,104300.0,104290.0,0.5495774]
[1748742691400,1.82000159,104300.0,104290.0,0.57416466]
[1748742691586,1.79982706,104300.0,104290.0,0.55498802]
[1748742691949,1.80082706,104300.0,104290.0,0.54600076]
[1748742692107,2.09434706,104300.0,104290.0,0.26820848]
[1748742692459,2.09434706,104300.0,104290.0,0.26206913]
[1748742693098,2.09434706,104300.0,104290.0,0.26880959]
[1748742693303,2.09434706,104300.0,104290.0,0.26206913]
[1748742693898,1.60003596,104300.0,104290.0,0.26206913]
[1748742694313,1.60003596,104300.0,104290.0,0.26880958]
[1748742694615,1.60003596,104300.0,104290.0,0.26206913]
[1748742694755,1.60003596,104300.0,104290.0,0.26880958]
[1748742694968,1.60003596,104300.0,104290.0,0.26206913]
[1748742695318,1.60003596,104300.0,104290.0,0.26880958]
[1748742695533,1.60003596,104300.0,104290.0,0.26206913]
[1748742696020,1.60003596,104300.0,104290.0,0.2710564]
[1748742696228,1.60003596,104300.0,104290.0,0.26880958]
[1748742696477,1.60003596,104300.0,104290.0,0.26206913]
[1748742696684,1.60003596,104300.0,104290.0,0.26880958]
[1748742696896,0.95306942,104300.0,104290.0,0.26206913]
[1748742697104,1.60003596,104300.0,104290.0,0.2710564]
[1748742697311,1.30651596,104300.0,104290.0,0.26880958]
[1748742697522,1.30651596,104300.0,104290.0,0.26206913]
[1748742697793,1.30651596,104300.0,104290.0,0.27105639]
[1748742697972,1.31602702,104300.0,104290.0,0.27105639]
[1748742698176,1.31602702,104300.0,104290.0,0.26206913]
[1748742698936,1.31602702,104300.0,104290.0,0.26880957]
[1748742699144,1.31602702,104300.0,104290.0,0.26206913]
[1748742699545,1.41692702,104300.0,104290.0,0.28064465]
[1748742699745,1.31602702,104300.0,104290.0,0.28738509]
[1748742699997,1.63951029,104300.0,104290.0,0.25862008]
[1748742700208,1.31602702,104300.0,104290.0,0.27105664]
[1748742700419,1.31602702,104300.0,104290.0,0.28124595]
[1748742700872,1.31602702,104300.0,104290.0,0.26564595]
[1748742701055,1.31602702,104300.0,104290.0,0.27238646]
[1748742701228,1.31602702,104300.0,104290.0,0.2589333]
[1748742701430,1.31602702,104300.0,104290.0,0.24994595]
[1748742701632,1.31602702,104300.0,104290.0,0.2589333]
[1748742702617,1.31602702,104300.0,104290.0,0.26567381]
[1748742702821,1.31602702,104300.0,104290.0,0.26792064]
[1748742703092,1.31602702,104300.0,104290.0,0.2589333]
[1748742703286,1.73536459,104300.0,104290.0,0.02880671]
[1748742703430,1.83548459,104300.0,104290.0,0.03779474]
[1748742703639,1.83548459,104300.0,104290.0,0.02880671]
[1748742704047,1.95092544,104300.0,104290.0,0.02880671]
[1748742704254,3.06037525,104300.0,104290.0,0.02880671]
[1748742704468,3.06437525,104300.0,104290.0,0.02880671]
[1748742704684,3.06437525,104300.0,104290.0,0.02473587]
[1748742704879,3.06237525,104300.0,104290.0,0.02473587]
[1748742705147,3.06037525,104300.0,104290.0,0.02473587]
[1748742705547,2.08992544,104300.0,104290.0,0.02473587]
[1748742705922,2.09192544,104300.0,104290.0,0.02473587]
[1748742706128,2.09592544,104300.0,104290.0,0.02473587]
[1748742706601,2.09192544,104300.0,104290.0,0.02473587]
[1748742706769,2.09692544,104300.0,104290.0,0.02473587]
[1748742707555,2.11615865,104300.0,104290.0,0.02473587]
[1748742712914,2.40967865,104300.0,104290.0,0.02473587]
[1748742715939,2.11615865,104300.0,104290.0,0.02473587]
[1748742716145,2.40967865,104300.0,104290.0,0.02473587]
[1748742716552,2.40967865,104300.0,104290.0,0.01801555]
[1748742716756,3.38012846,104300.0,104290.0,0.01801555]
[1748742717357,2.40967865,104300.0,104290.0,0.01801555]
[1748742723021,0.21096981,104280.0,104270.0,0.07635409]
[1748742723237,2.10302575,104280.0,104270.0,0.07644735]
[1748742723441,2.2284666,104280.0,104270.0,0.07644735]
[1748742724285,2.2344666,104280.0,104270.0,0.07644735]
[1748742725901,2.21712065,104280.0,104270.0,0.07644735]
[1748742728044,2.21712065,104280.0,104270.0,9.326e-05]
[1748742730591,1.72262065,104280.0,104270.0,9.326e-05]
[1748742730811,2.0916798,104280.0,104270.0,9.326e-05]
[1748742731036,1.28874223,104280.0,104270.0,0.19190298]
[1748742731257,1.66275313,104280.0,104270.0,9.326e-05]
[1748742731506,1.27915313,104280.0,104270.0,9.326e-05]
[1748742731757,1.66271313,104280.0,104270.0,9.326e-05]
[1748742732160,1.9861964,104280.0,104270.0,9.326e-05]
[1748742732365,1.6927164,104280.0,104270.0,9.326e-05]